[Event "*** MasterClass Titled Tuesday Blitz"]
[Site "Chess.com"]
[Date "2017.09.05"]
[Round "7"]
[White "Robin-Side"]
[Black "DiogenesSinopeus"]
[Result "0-1"]
[WhiteElo "2266"]
[BlackElo "2369"]
[TimeControl "180+2"]
[EndTime "14:38:07 PDT"]
[Termination "DiogenesSinopeus won by resignation"]

1. e4 {[%clk 0:03:01.9]} 1... e5 {[%clk 0:03:00.9]} 2. f4 {[%clk 0:03:00.6]}
2... Bc5 {[%clk 0:02:58.2]} 3. Nf3 {[%clk 0:03:01.1]} 3... d6 {[%clk 0:02:58]}
4. Bc4 {[%clk 0:02:59.3]} 4... Nf6 {[%clk 0:02:58.5]} 5. Nc3 {[%clk 0:02:59.9]}
5... Nc6 {[%clk 0:02:59.9]} 6. d3 {[%clk 0:02:59]} 6... Bg4 {[%clk 0:03:01.2]}
7. Na4 {[%clk 0:02:56]} 7... O-O {[%clk 0:03:01.3]} 8. Nxc5 {[%clk 0:02:52.4]}
8... dxc5 {[%clk 0:03:03.2]} 9. O-O {[%clk 0:02:50.5]} 9... Qd6 {[%clk
0:03:02.5]} 10. Qd2 {[%clk 0:02:50.8]} 10... Bxf3 {[%clk 0:03:02.4]} 11. gxf3
{[%clk 0:02:50.8]} 11... exf4 {[%clk 0:03:03.4]} 12. Qxf4 {[%clk 0:02:51]} 12...
Ne5 {[%clk 0:03:04.8]} 13. Bb3 {[%clk 0:02:46.9]} 13... b5 {[%clk 0:03:00]} 14.
Be3 {[%clk 0:02:42.4]} 14... Qe7 {[%clk 0:02:58.7]} 15. Qg5 {[%clk 0:02:24.4]}
15... c4 {[%clk 0:02:25.2]} 16. dxc4 {[%clk 0:02:24.1]} 16... bxc4 {[%clk
0:02:26.7]} 17. Ba4 {[%clk 0:02:24.1]} 17... c5 {[%clk 0:01:59.4]} 18. Rad1
{[%clk 0:02:10]} 18... Rfd8 {[%clk 0:01:59.3]} 19. Bd2 {[%clk 0:01:52.2]} 19...
Rd6 {[%clk 0:01:34.6]} 20. Bc3 {[%clk 0:01:46.7]} 20... Rxd1 {[%clk 0:01:35.5]}
21. Rxd1 {[%clk 0:01:44.4]} 21... Nxf3+ {[%clk 0:01:36.7]} 0-1

[Event "*** MasterClass Titled Tuesday Blitz"]
[Site "Chess.com"]
[Date "2017.09.05"]
[Round "7"]
[White "PrinceMurad09"]
[Black "Mistheoretical"]
[Result "1-0"]
[WhiteElo "2356"]
[BlackElo "2200"]
[TimeControl "180+2"]
[EndTime "14:39:21 PDT"]
[Termination "PrinceMurad09 won by resignation"]

1. e4 {[%clk 0:03:01.9]} 1... e6 {[%clk 0:03:01.3]} 2. d3 {[%clk 0:03:01.7]}
2... d5 {[%clk 0:03:03.2]} 3. Qe2 {[%clk 0:03:03.3]} 3... c5 {[%clk 0:03:00.5]}
4. Nf3 {[%clk 0:03:04.3]} 4... Nc6 {[%clk 0:03:01.6]} 5. g3 {[%clk 0:03:03.4]}
5... Nge7 {[%clk 0:03:01.3]} 6. Bg2 {[%clk 0:03:03.5]} 6... g6 {[%clk
0:03:01.9]} 7. O-O {[%clk 0:03:03.8]} 7... Bg7 {[%clk 0:03:03.5]} 8. e5 {[%clk
0:03:05.2]} 8... h6 {[%clk 0:02:47.4]} 9. h4 {[%clk 0:03:05]} 9... Qc7 {[%clk
0:02:33.2]} 10. Re1 {[%clk 0:03:02.6]} 10... b6 {[%clk 0:01:58.2]} 11. a4 {[%clk
0:03:00.8]} 11... Bb7 {[%clk 0:01:35.7]} 12. c3 {[%clk 0:02:59.4]} 12... a6
{[%clk 0:01:26.8]} 13. Na3 {[%clk 0:02:56.2]} 13... Na5 {[%clk 0:01:00.5]} 14.
Bf4 {[%clk 0:02:45]} 14... Nac6 {[%clk 0:00:50.5]} 15. Nc2 {[%clk 0:02:35.2]}
15... b5 {[%clk 0:00:24.8]} 16. axb5 {[%clk 0:02:25.9]} 16... axb5 {[%clk
0:00:26.7]} 17. c4 {[%clk 0:02:27.3]} 17... bxc4 {[%clk 0:00:18.7]} 18. dxc4
{[%clk 0:02:27.2]} 18... Na5 {[%clk 0:00:09.8]} 19. Na3 {[%clk 0:02:24.9]} 19...
d4 {[%clk 0:00:06.7]} 20. Nb5 {[%clk 0:02:24.8]} 20... Qb6 {[%clk 0:00:06.7]}
21. Nd6+ {[%clk 0:02:24.7]} 21... Kf8 {[%clk 0:00:07.5]} 22. Nxb7 {[%clk
0:02:24.6]} 22... Qxb7 {[%clk 0:00:08]} 23. Nxd4 {[%clk 0:02:25.5]} 23... Nac6
{[%clk 0:00:06.7]} 24. Rxa8+ {[%clk 0:02:20.5]} 24... Qxa8 {[%clk 0:00:06.9]}
25. Nxc6 {[%clk 0:02:21.7]} 25... Nxc6 {[%clk 0:00:08.3]} 26. Qe4 {[%clk
0:02:23.1]} 1-0

[Event "*** MasterClass Titled Tuesday Blitz"]
[Site "Chess.com"]
[Date "2017.09.05"]
[Round "7"]
[White "HanSchut"]
[Black "SavelijTartakover"]
[Result "0-1"]
[WhiteElo "2331"]
[BlackElo "2564"]
[TimeControl "180+2"]
[EndTime "14:40:39 PDT"]
[Termination "SavelijTartakover won by resignation"]

1. e4 {[%clk 0:03:01.9]} 1... c5 {[%clk 0:02:39.7]} 2. Nf3 {[%clk 0:03:02.2]}
2... d6 {[%clk 0:02:40.3]} 3. d4 {[%clk 0:03:03.1]} 3... cxd4 {[%clk 0:02:41.3]}
4. Nxd4 {[%clk 0:03:05]} 4... Nf6 {[%clk 0:02:42.2]} 5. Nc3 {[%clk 0:03:05.9]}
5... Nc6 {[%clk 0:02:43.3]} 6. Bg5 {[%clk 0:03:02.4]} 6... e6 {[%clk 0:02:42.9]}
7. Qd2 {[%clk 0:03:02.7]} 7... a6 {[%clk 0:02:44]} 8. O-O-O {[%clk 0:03:00.6]}
8... Bd7 {[%clk 0:02:45.4]} 9. f3 {[%clk 0:02:59.4]} 9... Be7 {[%clk 0:02:45.6]}
10. Kb1 {[%clk 0:02:55.2]} 10... b5 {[%clk 0:02:44.7]} 11. Nxc6 {[%clk
0:02:40.1]} 11... Bxc6 {[%clk 0:02:44.9]} 12. Qe3 {[%clk 0:02:35.9]} 12... Ng4
{[%clk 0:02:35.9]} 13. fxg4 {[%clk 0:02:23.7]} 13... Bxg5 {[%clk 0:02:36.3]} 14.
Qg3 {[%clk 0:02:20.1]} 14... Be7 {[%clk 0:02:26.6]} 15. e5 {[%clk 0:01:52.1]}
15... d5 {[%clk 0:02:25.3]} 16. Ne4 {[%clk 0:01:49.6]} 16... O-O {[%clk
0:02:21.9]} 17. g5 {[%clk 0:01:46.7]} 17... dxe4 {[%clk 0:02:13.2]} 18. Rxd8
{[%clk 0:01:44.7]} 18... Rfxd8 {[%clk 0:02:14.6]} 19. Be2 {[%clk 0:01:44]} 19...
Rd2 {[%clk 0:02:13.5]} 20. Qe3 {[%clk 0:01:40.1]} 20... Rad8 {[%clk 0:02:13.1]}
21. Kc1 {[%clk 0:01:38.8]} 21... R2d5 {[%clk 0:02:09.4]} 22. h4 {[%clk
0:01:33.2]} 22... Bc5 {[%clk 0:01:49]} 23. Qf4 {[%clk 0:01:34.1]} 23... e3
{[%clk 0:01:47.5]} 24. Rf1 {[%clk 0:01:16.5]} 24... R8d7 {[%clk 0:01:47.3]} 25.
Bd3 {[%clk 0:01:17.6]} 25... Bd4 {[%clk 0:01:27.6]} 26. h5 {[%clk 0:00:58]}
26... Rxe5 {[%clk 0:01:21.7]} 27. g6 {[%clk 0:00:53.6]} 27... f5 {[%clk
0:01:21.2]} 28. gxh7+ {[%clk 0:00:48.3]} 28... Kxh7 {[%clk 0:01:21.4]} 29. g4
{[%clk 0:00:49]} 29... e2 {[%clk 0:01:19]} 30. gxf5 {[%clk 0:00:21.1]} 30...
Be3+ {[%clk 0:01:13.6]} 31. Qxe3 {[%clk 0:00:22.1]} 31... Rxe3 {[%clk
0:01:13.7]} 32. fxe6+ {[%clk 0:00:22.7]} 32... Rdxd3 {[%clk 0:01:14.2]} 33. cxd3
{[%clk 0:00:23.3]} 33... exf1=Q+ {[%clk 0:01:14.2]} 0-1

[Event "*** MasterClass Titled Tuesday Blitz"]
[Site "Chess.com"]
[Date "2017.09.05"]
[Round "7"]
[White "Alexander_Moskalenko"]
[Black "swayamsm"]
[Result "1-0"]
[WhiteElo "2671"]
[BlackElo "2521"]
[TimeControl "180+2"]
[EndTime "14:41:20 PDT"]
[Termination "Alexander_Moskalenko won by resignation"]

1. d4 {[%clk 0:03:01.9]} 1... Nf6 {[%clk 0:03:00]} 2. Bf4 {[%clk 0:02:56.8]}
2... c5 {[%clk 0:02:45.3]} 3. d5 {[%clk 0:02:56]} 3... b5 {[%clk 0:02:42.1]} 4.
Nf3 {[%clk 0:02:48.8]} 4... g6 {[%clk 0:02:38.3]} 5. Nbd2 {[%clk 0:02:41.2]}
5... Nxd5 {[%clk 0:02:29.5]} 6. Be5 {[%clk 0:02:41.8]} 6... f6 {[%clk
0:02:24.8]} 7. e4 {[%clk 0:02:43.3]} 7... Nc7 {[%clk 0:02:21.5]} 8. Bxc7 {[%clk
0:02:39.7]} 8... Qxc7 {[%clk 0:02:23.4]} 9. Bxb5 {[%clk 0:02:41.1]} 9... Bg7
{[%clk 0:02:24]} 10. Bc4 {[%clk 0:02:40.1]} 10... Nc6 {[%clk 0:02:17.9]} 11. c3
{[%clk 0:02:40]} 11... e6 {[%clk 0:02:16.8]} 12. O-O {[%clk 0:02:39.9]} 12...
O-O {[%clk 0:02:18.3]} 13. Re1 {[%clk 0:02:39.6]} 13... Kh8 {[%clk 0:02:18]} 14.
Bb3 {[%clk 0:02:32.9]} 14... Bb7 {[%clk 0:02:13]} 15. Nc4 {[%clk 0:02:10.3]}
15... d5 {[%clk 0:02:13.5]} 16. exd5 {[%clk 0:02:09.8]} 16... exd5 {[%clk
0:02:15.4]} 17. Ne3 {[%clk 0:02:05.7]} 17... d4 {[%clk 0:02:12.5]} 18. cxd4
{[%clk 0:02:06.9]} 18... cxd4 {[%clk 0:02:09.8]} 19. Nxd4 {[%clk 0:02:03.6]}
19... Nxd4 {[%clk 0:02:06.2]} 20. Qxd4 {[%clk 0:02:05.5]} 20... f5 {[%clk
0:02:06.2]} 21. Qc4 {[%clk 0:02:04.1]} 21... Rac8 {[%clk 0:01:58.2]} 22. Rac1
{[%clk 0:02:04.1]} 22... Qa5 {[%clk 0:01:45.2]} 23. Qe6 {[%clk 0:01:08.7]} 23...
Bxb2 {[%clk 0:01:24.3]} 24. Nc4 {[%clk 0:01:07.3]} 24... Rxc4 {[%clk 0:00:52.6]}
25. Rxc4 {[%clk 0:01:09.2]} 25... Bd5 {[%clk 0:00:31.6]} 26. Qe7 {[%clk
0:01:10.1]} 26... Rf7 {[%clk 0:00:25.8]} 27. Qe8+ {[%clk 0:01:10.4]} 27... Kg7
{[%clk 0:00:25.4]} 28. Rc8 {[%clk 0:01:02.8]} 28... Bxb3 {[%clk 0:00:20]} 29.
axb3 {[%clk 0:01:04.7]} 29... Qd5 {[%clk 0:00:17.9]} 30. Qh8+ {[%clk 0:01:02.7]}
30... Kh6 {[%clk 0:00:19.3]} 31. Qxb2 {[%clk 0:01:04.6]} 31... f4 {[%clk
0:00:20]} 32. Qc1 {[%clk 0:01:04.6]} 32... Qf5 {[%clk 0:00:18.9]} 33. Rc5 {[%clk
0:01:05.3]} 33... Qg4 {[%clk 0:00:19.1]} 34. h3 {[%clk 0:01:06.2]} 34... Qh4
{[%clk 0:00:20.1]} 35. f3 {[%clk 0:01:07.2]} 35... Rd7 {[%clk 0:00:18.7]} 36.
Rc4 {[%clk 0:01:07.5]} 36... g5 {[%clk 0:00:18.9]} 37. Rce4 {[%clk 0:01:08.4]}
37... Qg3 {[%clk 0:00:18.6]} 38. Qc6+ {[%clk 0:01:07.8]} 1-0

[Event "*** MasterClass Titled Tuesday Blitz"]
[Site "Chess.com"]
[Date "2017.09.05"]
[Round "7"]
[White "Makalexa"]
[Black "nickmatta"]
[Result "0-1"]
[WhiteElo "2154"]
[BlackElo "2321"]
[TimeControl "180+2"]
[EndTime "14:41:23 PDT"]
[Termination "nickmatta won by checkmate"]

1. e4 {[%clk 0:03:01.9]} 1... c5 {[%clk 0:03:01.1]} 2. Nf3 {[%clk 0:02:59.2]}
2... d6 {[%clk 0:02:57.9]} 3. d4 {[%clk 0:02:59.4]} 3... cxd4 {[%clk 0:03:00.8]}
4. Nxd4 {[%clk 0:03:00.9]} 4... Nf6 {[%clk 0:03:02.6]} 5. Nc3 {[%clk 0:03:02.4]}
5... a6 {[%clk 0:03:04.5]} 6. Be3 {[%clk 0:03:03.4]} 6... e6 {[%clk 0:03:06.2]}
7. f3 {[%clk 0:02:56.8]} 7... b5 {[%clk 0:03:05.4]} 8. Qd2 {[%clk 0:02:37.3]}
8... Nbd7 {[%clk 0:03:04.3]} 9. Qf2 {[%clk 0:02:30.6]} 9... Bb7 {[%clk
0:02:48.9]} 10. g4 {[%clk 0:02:28.2]} 10... h6 {[%clk 0:02:49.6]} 11. h4 {[%clk
0:02:26.5]} 11... b4 {[%clk 0:02:43.4]} 12. Nce2 {[%clk 0:02:16.7]} 12... d5
{[%clk 0:02:41.6]} 13. g5 {[%clk 0:02:12.3]} 13... hxg5 {[%clk 0:02:42.2]} 14.
Bh3 {[%clk 0:02:04.4]} 14... Rxh4 {[%clk 0:02:31.5]} 15. Bxg5 {[%clk 0:02:02.5]}
15... Rh8 {[%clk 0:02:27.3]} 16. O-O-O {[%clk 0:02:01.5]} 16... Qa5 {[%clk
0:02:10.3]} 17. Nb3 {[%clk 0:01:48]} 17... Qb6 {[%clk 0:02:02.1]} 18. Be3 {[%clk
0:01:35.7]} 18... Qc7 {[%clk 0:01:58.6]} 19. Bxe6 {[%clk 0:01:20.9]} 19... fxe6
{[%clk 0:01:28.2]} 20. Rxh8 {[%clk 0:01:16.6]} 20... dxe4 {[%clk 0:01:29.6]} 21.
Nc5 {[%clk 0:01:00.7]} 21... Nxc5 {[%clk 0:01:04.9]} 22. Bxc5 {[%clk 0:00:58.8]}
22... Kf7 {[%clk 0:01:05.7]} 23. Bxf8 {[%clk 0:00:51.3]} 23... exf3 {[%clk
0:00:51.2]} 24. Bxg7 {[%clk 0:00:41.6]} 24... Kxg7 {[%clk 0:00:45]} 25. Rdh1
{[%clk 0:00:20.7]} 25... Rxh8 {[%clk 0:00:29.7]} 26. Qg1+ {[%clk 0:00:21.6]}
26... Kf7 {[%clk 0:00:30.6]} 27. Rxh8 {[%clk 0:00:20.5]} 27... fxe2 {[%clk
0:00:30]} 28. Qf2 {[%clk 0:00:19.3]} 28... Qf4+ {[%clk 0:00:28.3]} 29. Qxf4
{[%clk 0:00:07.5]} 29... e1=Q# {[%clk 0:00:29.4]} 0-1

[Event "*** MasterClass Titled Tuesday Blitz"]
[Site "Chess.com"]
[Date "2017.09.05"]
[Round "7"]
[White "danyuffa"]
[Black "Izoria123"]
[Result "0-1"]
[WhiteElo "2579"]
[BlackElo "2650"]
[TimeControl "180+2"]
[EndTime "14:41:38 PDT"]
[Termination "Izoria123 won by resignation"]

1. d4 {[%clk 0:03:01.9]} 1... d6 {[%clk 0:03:00.5]} 2. Nf3 {[%clk 0:03:02.3]}
2... g6 {[%clk 0:03:01.3]} 3. c4 {[%clk 0:03:03.1]} 3... Bg7 {[%clk 0:02:59.5]}
4. Nc3 {[%clk 0:03:04.5]} 4... Bg4 {[%clk 0:02:58.3]} 5. g3 {[%clk 0:03:03.4]}
5... Bxf3 {[%clk 0:02:53.7]} 6. exf3 {[%clk 0:02:55]} 6... c6 {[%clk 0:02:56.4]}
7. d5 {[%clk 0:02:56]} 7... Nf6 {[%clk 0:02:57.3]} 8. Be2 {[%clk 0:02:54.8]}
8... O-O {[%clk 0:02:58]} 9. O-O {[%clk 0:02:57.1]} 9... Nbd7 {[%clk 0:02:59.2]}
10. Be3 {[%clk 0:02:58.6]} 10... Qa5 {[%clk 0:02:59.6]} 11. a3 {[%clk
0:02:56.3]} 11... Rfc8 {[%clk 0:02:58.5]} 12. Bd4 {[%clk 0:02:31.1]} 12... cxd5
{[%clk 0:02:59]} 13. cxd5 {[%clk 0:02:30.3]} 13... a6 {[%clk 0:02:54.5]} 14. b4
{[%clk 0:02:17.1]} 14... Qd8 {[%clk 0:02:54.4]} 15. Qb3 {[%clk 0:02:02.1]} 15...
Rc7 {[%clk 0:02:51.4]} 16. Rfd1 {[%clk 0:01:56.3]} 16... Rac8 {[%clk 0:02:52.1]}
17. a4 {[%clk 0:01:42.7]} 17... Qf8 {[%clk 0:02:48.3]} 18. a5 {[%clk 0:01:34.8]}
18... Ng4 {[%clk 0:02:42.6]} 19. Na4 {[%clk 0:00:55.4]} 19... Rc2 {[%clk
0:01:42.2]} 20. Ra2 {[%clk 0:00:49.2]} 20... Rc1 {[%clk 0:01:34.8]} 21. Rd2
{[%clk 0:00:40.1]} 21... Bxd4 {[%clk 0:01:27.8]} 22. Rxd4 {[%clk 0:00:40]} 22...
Ngf6 {[%clk 0:01:29.2]} 23. Kg2 {[%clk 0:00:39.1]} 23... Qh6 {[%clk 0:01:21.3]}
24. f4 {[%clk 0:00:38.4]} 24... g5 {[%clk 0:01:21.4]} 25. fxg5 {[%clk
0:00:33.9]} 25... Qxg5 {[%clk 0:01:23.3]} 26. Nb6 {[%clk 0:00:21.3]} 26... Nxb6
{[%clk 0:01:22.5]} 27. axb6 {[%clk 0:00:21]} 27... R1c2 {[%clk 0:01:19.7]} 28.
Qf3 {[%clk 0:00:16]} 28... Rb2 {[%clk 0:01:12.9]} 29. h4 {[%clk 0:00:15.4]}
29... Qg6 {[%clk 0:01:09.5]} 30. R1d2 {[%clk 0:00:16.3]} 30... Rcc2 {[%clk
0:01:07.5]} 31. Rxc2 {[%clk 0:00:17.2]} 31... Qxc2 {[%clk 0:01:08.9]} 32. Bd3
{[%clk 0:00:14.5]} 32... Qb3 {[%clk 0:00:59.4]} 33. Rc4 {[%clk 0:00:15.3]} 33...
Kg7 {[%clk 0:00:55.4]} 34. Qf4 {[%clk 0:00:14.3]} 34... Qxd3 {[%clk 0:00:53.5]}
35. Qg5+ {[%clk 0:00:13.2]} 35... Qg6 {[%clk 0:00:54.3]} 36. Rc7 {[%clk
0:00:14.7]} 36... Rxf2+ {[%clk 0:00:53]} 0-1

[Event "*** MasterClass Titled Tuesday Blitz"]
[Site "Chess.com"]
[Date "2017.09.05"]
[Round "7"]
[White "ViIIagra"]
[Black "cheese111"]
[Result "1-0"]
[WhiteElo "2669"]
[BlackElo "2320"]
[TimeControl "180+2"]
[EndTime "14:41:38 PDT"]
[Termination "ViIIagra won by resignation"]

1. e4 {[%clk 0:03:01.9]} 1... e5 {[%clk 0:02:49]} 2. Nc3 {[%clk 0:03:02.5]} 2...
Nf6 {[%clk 0:02:49.7]} 3. g3 {[%clk 0:03:03.5]} 3... d5 {[%clk 0:02:50.2]} 4.
exd5 {[%clk 0:03:05.4]} 4... Nxd5 {[%clk 0:02:52]} 5. Bg2 {[%clk 0:03:06.2]}
5... Nxc3 {[%clk 0:02:53.3]} 6. bxc3 {[%clk 0:03:08.1]} 6... Nc6 {[%clk
0:02:54.3]} 7. d3 {[%clk 0:03:08]} 7... Bc5 {[%clk 0:02:54.3]} 8. Nf3 {[%clk
0:03:08.7]} 8... O-O {[%clk 0:02:54]} 9. O-O {[%clk 0:03:09.9]} 9... Bg4 {[%clk
0:02:54.5]} 10. h3 {[%clk 0:03:10.9]} 10... Bh5 {[%clk 0:02:54.6]} 11. Rb1
{[%clk 0:02:59.5]} 11... Bb6 {[%clk 0:02:54.7]} 12. Qe1 {[%clk 0:02:51.8]} 12...
Re8 {[%clk 0:02:51.1]} 13. Nd2 {[%clk 0:02:52]} 13... f6 {[%clk 0:02:40]} 14.
Nb3 {[%clk 0:02:49.9]} 14... Qd6 {[%clk 0:02:36.2]} 15. Be3 {[%clk 0:02:50.8]}
15... Rab8 {[%clk 0:02:16.2]} 16. a4 {[%clk 0:02:32]} 16... Nd4 {[%clk
0:01:33.7]} 17. cxd4 {[%clk 0:02:02.7]} 17... exd4 {[%clk 0:01:32.8]} 18. Bf4
{[%clk 0:02:02.9]} 18... Rxe1 {[%clk 0:01:33]} 19. Rfxe1 {[%clk 0:02:04.8]}
19... Qb4 {[%clk 0:01:20.7]} 20. a5 {[%clk 0:02:04]} 20... Bxa5 {[%clk
0:01:17.5]} 21. Bd2 {[%clk 0:02:05.1]} 21... Qxd2 {[%clk 0:00:51.1]} 22. Nxd2
{[%clk 0:02:07]} 22... Bxd2 {[%clk 0:00:52.4]} 23. Re7 {[%clk 0:02:08.2]} 23...
Ba5 {[%clk 0:00:52]} 24. Rxb7 {[%clk 0:02:07.3]} 24... Rxb7 {[%clk 0:00:50.4]}
25. Bxb7 {[%clk 0:02:07.6]} 25... Bb6 {[%clk 0:00:51.4]} 26. Re1 {[%clk
0:01:54.2]} 26... Bf7 {[%clk 0:00:41.5]} 27. Bc6 {[%clk 0:01:54.1]} 27... Kf8
{[%clk 0:00:40.6]} 28. Kg2 {[%clk 0:01:53.4]} 28... h5 {[%clk 0:00:35.2]} 29. f4
{[%clk 0:01:54.5]} 29... Bg6 {[%clk 0:00:25.5]} 30. Kf3 {[%clk 0:01:55.2]} 30...
Bf5 {[%clk 0:00:22.2]} 31. g4 {[%clk 0:01:47.1]} 31... hxg4+ {[%clk 0:00:24.1]}
32. hxg4 {[%clk 0:01:49]} 32... Bg6 {[%clk 0:00:25.3]} 33. f5 {[%clk 0:01:48.9]}
33... Bf7 {[%clk 0:00:26.4]} 34. Rh1 {[%clk 0:01:49.4]} 34... Kg8 {[%clk
0:00:26]} 35. Ke4 {[%clk 0:01:49.8]} 35... Kf8 {[%clk 0:00:16.2]} 36. Bd5 {[%clk
0:01:48.3]} 36... Be8 {[%clk 0:00:09]} 37. Rh8+ {[%clk 0:01:48.1]} 37... Ke7
{[%clk 0:00:09.2]} 38. Rg8 {[%clk 0:01:50]} 38... c6 {[%clk 0:00:07.6]} 39.
Rxg7+ {[%clk 0:01:49.6]} 39... Kd6 {[%clk 0:00:06.1]} 40. Bc4 {[%clk 0:01:47.9]}
40... a5 {[%clk 0:00:05.8]} 41. g5 {[%clk 0:01:47.8]} 41... fxg5 {[%clk
0:00:06.9]} 42. f6 {[%clk 0:01:49.5]} 42... a4 {[%clk 0:00:04.4]} 43. f7 {[%clk
0:01:49.8]} 43... Bxf7 {[%clk 0:00:05.7]} 44. Bxf7 {[%clk 0:01:50.9]} 44... Kc5
{[%clk 0:00:06.8]} 45. Rxg5+ {[%clk 0:01:51.6]} 45... Kb4 {[%clk 0:00:07.6]} 46.
Rg1 {[%clk 0:01:51.9]} 46... Kc3 {[%clk 0:00:08.4]} 47. Ra1 {[%clk 0:01:52.9]}
47... Kb4 {[%clk 0:00:07.2]} 48. Be8 {[%clk 0:01:54.2]} 48... a3 {[%clk
0:00:06.9]} 49. Bxc6 {[%clk 0:01:54.8]} 49... Bc5 {[%clk 0:00:08]} 50. Ra2
{[%clk 0:01:56.4]} 50... Kc3 {[%clk 0:00:08.6]} 51. Kd5 {[%clk 0:01:58.1]} 51...
Bb4 {[%clk 0:00:08.1]} 52. Ba4 {[%clk 0:01:58.9]} 52... Be7 {[%clk 0:00:08.3]}
53. Kc6 {[%clk 0:02:00.2]} 53... Bf8 {[%clk 0:00:08.9]} 54. Bb3 {[%clk
0:02:02.1]} 54... Be7 {[%clk 0:00:09.9]} 55. Kb5 {[%clk 0:02:04]} 55... Bf8
{[%clk 0:00:11.1]} 56. Ka4 {[%clk 0:02:05.9]} 56... Be7 {[%clk 0:00:11.3]} 57.
Rxa3 {[%clk 0:02:07.5]} 1-0

[Event "*** MasterClass Titled Tuesday Blitz"]
[Site "Chess.com"]
[Date "2017.09.05"]
[Round "7"]
[White "iusegine"]
[Black "MatthewG-p4p"]
[Result "0-1"]
[WhiteElo "2381"]
[BlackElo "2567"]
[TimeControl "180+2"]
[EndTime "14:41:44 PDT"]
[Termination "MatthewG-p4p won by resignation"]

1. Nf3 {[%clk 0:03:01.9]} 1... Nf6 {[%clk 0:02:59.8]} 2. d4 {[%clk 0:02:56.8]}
2... c5 {[%clk 0:02:59.3]} 3. d5 {[%clk 0:02:56.4]} 3... e6 {[%clk 0:02:59]} 4.
c4 {[%clk 0:02:55.4]} 4... exd5 {[%clk 0:03:00.6]} 5. cxd5 {[%clk 0:02:57.5]}
5... d6 {[%clk 0:03:02.4]} 6. Nc3 {[%clk 0:02:59.4]} 6... g6 {[%clk 0:03:04]} 7.
Nd2 {[%clk 0:03:00.7]} 7... Bg7 {[%clk 0:03:05.5]} 8. e4 {[%clk 0:03:01.9]} 8...
O-O {[%clk 0:03:07.1]} 9. Be2 {[%clk 0:03:03.5]} 9... Re8 {[%clk 0:03:08.7]} 10.
O-O {[%clk 0:03:04.9]} 10... a6 {[%clk 0:03:10.3]} 11. a4 {[%clk 0:03:05.5]}
11... Nbd7 {[%clk 0:03:11.9]} 12. h3 {[%clk 0:03:05.8]} 12... Rb8 {[%clk
0:03:12.9]} 13. Qc2 {[%clk 0:02:52.8]} 13... Qc7 {[%clk 0:03:12.6]} 14. f4
{[%clk 0:02:32.7]} 14... c4 {[%clk 0:03:13.7]} 15. Nxc4 {[%clk 0:02:30]} 15...
b5 {[%clk 0:03:13.9]} 16. axb5 {[%clk 0:02:25.6]} 16... axb5 {[%clk 0:03:14.7]}
17. Ne3 {[%clk 0:01:55.3]} 17... b4 {[%clk 0:03:12.8]} 18. Nb5 {[%clk
0:01:54.3]} 18... Qxc2 {[%clk 0:03:12.6]} 19. Nxc2 {[%clk 0:01:56.2]} 19... Nxe4
{[%clk 0:03:13.2]} 20. Kh2 {[%clk 0:01:26.9]} 20... b3 {[%clk 0:03:00.4]} 21.
Ncd4 {[%clk 0:01:26.6]} 21... Ndc5 {[%clk 0:03:00.7]} 22. Nc6 {[%clk 0:01:05.2]}
22... Rb6 {[%clk 0:03:00]} 23. Nc7 {[%clk 0:00:56.6]} 23... Rf8 {[%clk
0:02:54.9]} 24. g4 {[%clk 0:00:27.4]} 24... Bd7 {[%clk 0:02:51.6]} 25. Ne7+
{[%clk 0:00:16.9]} 25... Kh8 {[%clk 0:02:52.1]} 26. f5 {[%clk 0:00:17.7]} 26...
Bf6 {[%clk 0:02:46]} 27. Nc6 {[%clk 0:00:11.2]} 27... Bxc6 {[%clk 0:02:46.3]}
28. dxc6 {[%clk 0:00:13.1]} 28... Rxc6 {[%clk 0:02:47.8]} 29. Nd5 {[%clk
0:00:14.8]} 29... Be5+ {[%clk 0:02:49.3]} 30. Kg2 {[%clk 0:00:16.2]} 30... Ng3
{[%clk 0:02:50]} 31. Rf2 {[%clk 0:00:15.1]} 31... Nxe2 {[%clk 0:02:51.1]} 32.
Rxe2 {[%clk 0:00:16.1]} 32... Nd3 {[%clk 0:02:53]} 33. Bh6 {[%clk 0:00:16.4]}
33... Rb8 {[%clk 0:02:47.9]} 34. Ra7 {[%clk 0:00:10.9]} 34... Rc5 {[%clk
0:02:19.2]} 35. Rxe5 {[%clk 0:00:08.2]} 35... Nxe5 {[%clk 0:02:18.5]} 36. Nf6
{[%clk 0:00:08.7]} 36... Rc2+ {[%clk 0:02:11.3]} 37. Kg3 {[%clk 0:00:09.4]}
37... Rxb2 {[%clk 0:01:59.3]} 38. Bf4 {[%clk 0:00:10.3]} 38... Kg7 {[%clk
0:02:00.5]} 39. g5 {[%clk 0:00:10.7]} 39... gxf5 {[%clk 0:01:59.3]} 40. Nh5+
{[%clk 0:00:10.7]} 40... Kg6 {[%clk 0:01:57.5]} 41. Ra6 {[%clk 0:00:09]} 41...
Nc4 {[%clk 0:01:53.1]} 42. Rc6 {[%clk 0:00:09.2]} 42... Rc2 {[%clk 0:01:52.9]}
43. Bxd6 {[%clk 0:00:09.3]} 43... Nxd6 {[%clk 0:01:47.8]} 44. Rxd6+ {[%clk
0:00:09.9]} 44... Kxh5 {[%clk 0:01:49.3]} 45. h4 {[%clk 0:00:09.7]} 45... f4+
{[%clk 0:01:50.2]} 46. Kxf4 {[%clk 0:00:09]} 46... Rb4+ {[%clk 0:01:50.5]} 47.
Kf3 {[%clk 0:00:09.1]} 47... Rc3+ {[%clk 0:01:51.6]} 0-1